bitfinex-derivatives/quotes_BTCF0:USTF0_20260113
["timestamp","ask_amount","ask_price","bid_price","bid_amount"]
[1768342739636,0.09444,95355.0,95325.0,0.10448297]
[1768342740142,0.17149282,95380.0,95325.0,0.10448297]
[1768342740143,0.09623006,95378.0,95331.0,0.19072029]
[1768342740446,0.010475,95472.0,95331.0,0.19072029]
[1768342740447,0.09798119,95368.0,95334.0,0.09448297]
[1768342740644,0.09623006,95361.0,95323.0,0.09448297]
[1768342740840,0.37776,95386.0,95323.0,0.09448297]
[1768342740841,0.09623006,95385.0,95337.0,0.19072029]
[1768342741041,0.09444,95384.0,95352.0,0.09623732]
[1768342741244,0.09623006,95368.0,95329.0,0.09448297]
[1768342741548,0.09798119,95364.0,95319.0,0.09448297]
[1768342741841,0.09798119,95349.0,95308.0,0.09448297]
[1768342742049,0.09623006,95347.0,95308.0,0.09448297]
[1768342742246,0.09444,95346.0,95317.0,0.09458987]
[1768342742440,0.09444,95345.0,95328.0,0.05484419]
[1768342742639,0.09444,95348.0,95329.0,0.09448297]
[1768342742835,0.09798119,95404.0,95343.0,0.09448297]
[1768342743041,0.09623006,95400.0,95347.0,0.09448297]
[1768342743242,0.09444,95399.0,95356.0,0.09448297]
[1768342743443,0.09798119,95392.0,95353.0,0.09448297]
[1768342743638,0.09623006,95388.0,95353.0,0.09448297]
[1768342743943,0.01119699,95423.0,95353.0,0.09448297]
[1768342743944,0.09623006,95384.0,95353.0,0.09448297]
[1768342744133,0.09798119,95378.0,95340.0,0.09444]
[1768342744333,0.09623006,95377.0,95331.0,0.09623732]
[1768342744538,0.09623006,95373.0,95321.0,0.09444]
[1768342744743,0.09623006,95371.0,95321.0,0.09444]
[1768342744940,0.09219419,95364.0,95321.0,0.09444]
[1768342745139,0.19078278,95357.0,95321.0,0.09444]
[1768342745446,0.09219419,95356.0,95321.0,0.09444]
[1768342745648,0.09219419,95356.0,95326.0,0.05484419]
[1768342747350,0.09219419,95356.0,95326.0,0.04957843]
[1768342747868,0.09444,95363.0,95328.0,0.09602704]
[1768342748041,0.09444,95363.0,95330.0,0.09602704]
[1768342748241,0.09444,95363.0,95331.0,0.09602704]
[1768342748439,0.09444,95363.0,95332.0,0.09602704]
[1768342748644,0.09444,95363.0,95336.0,0.09602704]
[1768342750152,0.09444,95363.0,95331.0,0.09444]
[1768342750450,0.09219419,95362.0,95331.0,0.09444]
[1768342751352,0.09444,95363.0,95332.0,0.04957843]
[1768342751353,0.09219419,95359.0,95332.0,0.04957843]
[1768342751743,0.09219419,95368.0,95332.0,0.14560547]
[1768342751947,0.09444,95367.0,95333.0,0.09602704]
[1768342752147,0.09219419,95368.0,95340.0,0.04957843]
[1768342752352,0.09444,95366.0,95340.0,0.04957843]
[1768342753151,0.09444,95383.0,95351.0,0.09702811]
[1768342753444,0.09444,95388.0,95352.0,0.09602704]
[1768342753650,0.09444,95388.0,95354.0,0.09602704]
[1768342753946,0.09444,95404.0,95358.0,0.09702811]
[1768342754151,0.09444,95403.0,95361.0,0.09602704]
[1768342754451,0.09219419,95401.0,95362.0,0.09602704]
[1768342754654,0.09444,95400.0,95362.0,0.50602704]
[1768342754951,0.18663419,95400.0,95362.0,0.50602704]
[1768342755341,0.09219419,95399.0,95362.0,0.50076239]
[1768342755547,0.09219419,95399.0,95362.0,0.55034082]
[1768342755744,0.09444,95400.0,95362.0,0.55660654]
[1768342755951,0.09444,95418.0,95363.0,0.09702811]
[1768342756145,0.09219419,95422.0,95364.0,0.09702811]
[1768342756344,0.09219419,95422.0,95365.0,0.09702811]
[1768342756542,0.09444,95421.0,95366.0,0.09702811]
[1768342756751,0.09219419,95420.0,95367.0,0.09702811]
[1768342756953,0.09219419,95416.0,95367.0,0.49702811]
[1768342757247,0.09219419,95414.0,95367.0,0.49702811]
[1768342757556,0.09219419,95412.0,95368.0,0.09444]
[1768342757855,0.09219419,95412.0,95368.0,0.36]
[1768342758150,0.09219419,95412.0,95369.0,0.09444]
[1768342758354,0.09219419,95412.0,95372.0,0.09937269]
[1768342758543,0.09444,95421.0,95374.0,0.09937269]
[1768342758747,0.09299072,95420.0,95375.0,0.09937269]
[1768342758954,0.09299072,95420.0,95377.0,0.09937269]
[1768342759149,0.09299072,95420.0,95379.0,0.09937269]
[1768342759452,0.09299072,95420.0,95380.0,0.09937269]
[1768342759652,0.09299072,95420.0,95382.0,0.09937269]
[1768342759852,0.09299072,95420.0,95383.0,0.09937269]
[1768342760047,0.09299072,95420.0,95383.0,0.27937269]
[1768342760854,0.09299072,95420.0,95384.0,0.09937269]
[1768342761055,0.09299072,95420.0,95385.0,0.09937269]
[1768342761258,0.09299072,95420.0,95386.0,0.0944]
[1768342761559,0.09299072,95429.0,95387.0,0.09937269]
[1768342761854,0.09299072,95425.0,95386.0,0.0944]
[1768342762050,0.18739072,95424.0,95386.0,0.14397843]
[1768342762356,0.09299072,95423.0,95387.0,0.09937269]
[1768342762557,0.0944,95424.0,95393.0,0.09937269]
[1768342762757,0.03967072,95434.0,95394.0,0.09937269]
[1768342762956,0.09159444,95434.0,95395.0,0.09937269]
[1768342763154,0.0944,95437.0,95397.0,0.09937269]
[1768342763359,0.09159444,95474.0,95401.0,0.09937269]
[1768342763546,0.0944,95473.0,95405.0,0.09937269]
[1768342763747,0.0944,95473.0,95406.0,0.09937269]
[1768342763949,0.00230428,95475.0,95436.0,0.09937269]
[1768342764154,0.00230428,95475.0,95438.0,0.09937269]
[1768342764357,0.09159444,95523.0,95441.0,0.09937269]
[1768342764558,0.0944,95520.0,95442.0,0.09937269]
[1768342764754,0.0944,95520.0,95443.0,0.09937269]
[1768342764954,0.0944,95520.0,95443.0,0.51937269]
[1768342765151,0.09299072,95513.0,95444.0,0.09937269]
[1768342765358,0.09159444,95525.0,95444.0,0.09937269]
[1768342765359,0.09299072,95503.0,95446.0,0.09937269]
[1768342765549,0.01,95536.0,95446.0,0.09937269]
[1768342765550,0.09299072,95498.0,95449.0,0.19135183]
[1768342765757,0.09299072,95498.0,95453.0,0.09937269]
[1768342765953,0.0944,95504.0,95456.0,0.19135183]
[1768342766159,0.18739072,95504.0,95458.0,0.09937269]
[1768342766361,0.18739072,95504.0,95462.0,0.09937269]
[1768342766555,0.09299072,95503.0,95463.0,0.0944]
[1768342766771,0.09299072,95501.0,95450.0,0.09937269]
[1768342766958,0.09299072,95501.0,95456.0,0.09937269]
[1768342767155,0.0944,95504.0,95459.0,0.09937269]
[1768342767360,0.0944,95504.0,95463.0,0.09937269]
[1768342767561,0.0944,95504.0,95464.0,0.09937269]
[1768342767761,0.09299072,95503.0,95464.0,0.19377269]
[1768342768064,0.09299072,95503.0,95465.0,0.09937269]
[1768342768262,0.0944,95504.0,95466.0,0.09937269]
[1768342768466,0.09299072,95514.0,95467.0,0.19135183]
[1768342768657,0.09299072,95514.0,95469.0,0.09937269]
[1768342768857,0.09299072,95514.0,95470.0,0.19135183]
[1768342769057,0.09299072,95514.0,95471.0,0.09937269]
[1768342769367,0.09299072,95514.0,95473.0,0.09937269]
[1768342769669,0.09299072,95514.0,95474.0,0.09937269]
[1768342770170,0.09159444,95530.0,95475.0,0.19135183]
[1768342770171,0.09436,95523.0,95475.0,0.19135183]
[1768342770370,0.09436,95523.0,95477.0,0.19135183]
[1768342770559,0.09436,95523.0,95478.0,0.09937269]
[1768342770754,0.09436,95523.0,95479.0,0.19135183]
[1768342770968,0.09436,95523.0,95480.0,0.09937269]
[1768342771172,0.09436,95523.0,95481.0,0.09937269]
[1768342771371,0.09436,95523.0,95482.0,0.09937269]
[1768342771669,0.09436,95523.0,95482.0,0.05]
[1768342772664,0.09299072,95515.0,95482.0,0.05]
[1768342772969,0.09436,95523.0,95482.0,0.05]
[1768342773362,0.01014588,95494.0,95482.0,0.05]
[1768342773962,0.01014588,95494.0,95483.0,0.19135183]
[1768342774168,0.10299072,95526.0,95484.0,0.09937269]
[1768342774364,0.10299072,95526.0,95485.0,0.09937269]
[1768342774555,0.09299072,95515.0,95485.0,0.19]
[1768342774771,0.09299072,95515.0,95474.0,0.09937269]
[1768342775069,0.09299072,95515.0,95475.0,0.09436]
[1768342775264,0.01,95526.0,95475.0,0.09436]
[1768342775265,0.09200703,95501.0,95475.0,0.09436]
[1768342775870,0.09200703,95499.0,95471.0,0.09436]
[1768342776070,0.09200703,95499.0,95448.0,0.09442558]
[1768342776071,0.0963415,95497.0,95450.0,0.09916839]
[1768342776268,0.0963415,95494.0,95452.0,0.09916839]
[1768342776470,0.3774,95514.0,95453.0,0.09432]
[1768342776471,0.09200703,95490.0,95453.0,0.09432]
[1768342776767,0.01,95526.0,95456.0,0.09442558]
[1768342776973,0.01,95526.0,95458.0,0.09442558]
[1768342777169,0.01,95526.0,95460.0,0.09442558]
[1768342777369,0.8704,95568.0,95460.0,0.09442558]
[1768342777370,0.09200703,95554.0,95462.0,0.09442558]
[1768342777667,0.09200703,95554.0,95483.0,0.19359397]
[1768342777885,0.18632703,95566.0,95487.0,0.19359397]
[1768342778062,0.09200703,95578.0,95491.0,0.19359397]
[1768342778259,0.09200703,95578.0,95495.0,0.19359397]
[1768342778570,0.10200703,95577.0,95504.0,0.19359397]
[1768342778772,0.0963415,95576.0,95518.0,0.09916839]
[1768342779069,0.10200703,95577.0,95519.0,0.09916839]
[1768342779070,0.0963415,95572.0,95519.0,0.09916839]
[1768342779272,0.09200703,95573.0,95519.0,0.09916839]
[1768342779273,0.0963415,95568.0,95520.0,0.09916839]
[1768342779465,0.09200703,95567.0,95522.0,0.09916839]
[1768342779769,0.18834853,95561.0,95523.0,0.09432]
[1768342780071,0.09200703,95549.0,95485.0,0.09442558]
[1768342780367,0.01,95577.0,95495.0,0.09442558]
[1768342780368,0.09200703,95546.0,95495.0,0.09442558]
[1768342780669,0.09200703,95541.0,95496.0,0.09432]
[1768342780874,0.09200703,95541.0,95496.0,0.44432]
[1768342781674,0.37736,95574.0,95496.0,0.44432]
[1768342781675,0.09200703,95554.0,95498.0,0.09916839]
[1768342781864,0.09200703,95553.0,95500.0,0.09916839]
[1768342782064,0.09200703,95553.0,95502.0,0.09916839]
[1768342782260,0.09200703,95550.0,95502.0,0.42]
[1768342782460,0.09200703,95548.0,95502.0,0.38]
[1768342782663,0.0963415,95545.0,95491.0,0.09916839]
[1768342782869,0.0963415,95539.0,95478.0,0.05643562]
[1768342783059,0.09200703,95536.0,95478.0,0.05643562]
[1768342783263,0.09200703,95514.0,95478.0,0.05643562]
[1768342783461,0.09200703,95512.0,95478.0,0.05643562]
[1768342783659,0.18834853,95508.0,95462.0,0.00012161]
[1768342783863,0.18834853,95506.0,95462.0,0.00012161]
[1768342784077,0.18834853,95504.0,95462.0,0.00012161]
[1768342784260,0.0963415,95493.0,95431.0,0.05495291]
[1768342784464,0.09200703,95477.0,95432.0,0.09432]
[1768342784661,0.0963415,95471.0,95429.0,0.05495291]
[1768342784965,0.09200703,95468.0,95426.0,0.05495291]
[1768342785166,0.09200703,95466.0,95427.0,0.09432]
[1768342785362,0.0963415,95462.0,95420.0,0.09432]
[1768342785562,0.0963415,95460.0,95420.0,0.09432]
[1768342785761,0.09200703,95457.0,95421.0,0.09432]
[1768342785966,0.09200703,95456.0,95421.0,0.09432]
[1768342786167,0.09200703,95456.0,95406.0,0.09916839]
[1768342786168,0.09200703,95452.0,95406.0,0.09916839]
[1768342786364,0.09200703,95452.0,95407.0,0.09432]
[1768342786579,0.09200703,95449.0,95407.0,0.42]
[1768342786781,0.09200703,95449.0,95407.0,0.51916839]
[1768342787077,0.09200703,95449.0,95408.0,0.09432]
[1768342787274,0.09200703,95447.0,95408.0,0.46432]
[1768342787774,0.09200703,95445.0,95403.0,0.09916839]
[1768342787974,0.00011838,95448.0,95391.0,0.09442558]
[1768342787975,0.09200703,95442.0,95392.0,0.09916839]
[1768342788284,0.09200703,95439.0,95393.0,0.09432]
[1768342788578,0.09432,95438.0,95395.0,0.09916839]
[1768342788777,0.09432,95438.0,95396.0,0.09916839]
[1768342788978,0.09432,95438.0,95397.0,0.09916839]
[1768342789175,0.09432,95438.0,95398.0,0.09916839]
[1768342789377,0.09432,95438.0,95398.0,0.10916839]
[1768342789879,0.09200703,95437.0,95398.0,0.10916839]
[1768342790283,0.09200703,95437.0,95399.0,0.09916839]
[1768342790470,0.09200703,95437.0,95399.0,0.25916839]
[1768342790971,0.18632703,95438.0,95415.0,0.00230573]
[1768342791174,0.09200703,95437.0,95415.0,0.00230573]
[1768342791376,0.09200703,95434.0,95402.0,0.09432]
[1768342791572,0.09200703,95434.0,95396.0,0.02717173]
[1768342791774,0.09200703,95430.0,95392.0,0.12149173]
[1768342791979,0.09200703,95420.0,95392.0,0.09432]
[1768342792169,0.09200703,95417.0,95390.0,0.02717173]
[1768342792372,0.09200703,95409.0,95372.0,0.03633125]
[1768342792582,0.09200703,95403.0,95369.0,0.09432]
[1768342792785,0.09200703,95401.0,95369.0,0.09432]
[1768342792970,0.09200703,95401.0,95366.0,0.03633125]
[1768342793170,0.09200703,95401.0,95367.0,0.09432]
[1768342793373,0.00011648,95400.0,95368.0,0.13065125]
[1768342793579,0.00011648,95400.0,95369.0,0.03633125]
[1768342793976,0.00011648,95400.0,95368.0,0.09432]
[1768342795279,0.00011648,95400.0,95368.0,0.18874558]
[1768342795486,0.00011648,95400.0,95369.0,0.09916839]
[1768342795786,0.09200703,95426.0,95373.0,0.09916839]
[1768342795987,0.09200703,95426.0,95375.0,0.09916839]
[1768342796181,0.09200703,95426.0,95376.0,0.09916839]
[1768342796486,0.09200703,95425.0,95377.0,0.09916839]
[1768342796689,0.09200703,95423.0,95378.0,0.09916839]
[1768342796887,0.09200703,95423.0,95379.0,0.09916839]
[1768342797185,0.09200703,95423.0,95381.0,0.09916839]
[1768342797386,0.09200703,95423.0,95381.0,0.10916839]
[1768342797585,0.09200703,95423.0,95382.0,0.09436]
[1768342797786,0.09200703,95423.0,95381.0,0.09916839]
[1768342797986,0.09200703,95423.0,95381.0,0.10916839]
[1768342798187,0.09200703,95420.0,95369.0,0.19359397]
[1768342798372,0.09200703,95415.0,95370.0,0.09436]
[1768342798577,0.09200703,95413.0,95370.0,0.39]
[1768342798871,0.09200703,95413.0,95369.0,0.19359397]
[1768342798872,0.09200703,95412.0,95369.0,0.09916839]
[1768342799082,0.09200703,95412.0,95370.0,0.09916839]
[1768342799382,0.09200703,95412.0,95371.0,0.09916839]
[1768342799686,0.09200703,95412.0,95371.0,0.10916839]
[1768342800279,0.00012178,95414.0,95373.0,0.09916839]
[1768342800473,0.09212881,95414.0,95373.0,0.45916839]
[1768342800677,0.09212881,95414.0,95375.0,0.09916839]
[1768342800887,0.09436,95413.0,95376.0,0.09436]
[1768342801086,0.09200703,95413.0,95377.0,0.09916839]
[1768342801278,0.09200703,95410.0,95378.0,0.09436]
[1768342801476,0.0963415,95407.0,95365.0,0.09916839]
[1768342801676,0.09200703,95406.0,95367.0,0.09916839]
[1768342801990,0.00010403,95405.0,95367.0,0.09916839]
[1768342802382,0.00010403,95405.0,95368.0,0.19359397]
[1768342802590,0.00010403,95405.0,95370.0,0.19359397]
[1768342802888,0.00010403,95405.0,95371.0,0.09916839]
[1768342803184,0.00010403,95405.0,95372.0,0.09916839]
[1768342803584,0.00010403,95405.0,95373.0,0.09442558]
[1768342803787,0.00010403,95405.0,95375.0,0.09442558]
[1768342803986,0.00010403,95405.0,95377.0,0.09442558]
[1768342804284,0.00010403,95405.0,95378.0,0.0944]
[1768342804485,0.00010403,95405.0,95378.0,0.2644]
[1768342804690,0.00010403,95405.0,95379.0,0.0944]
[1768342804890,0.00010403,95405.0,95381.0,0.09442558]
[1768342805191,0.09200703,95426.0,95383.0,0.09177818]
[1768342805390,0.09200703,95426.0,95383.0,0.51177818]
[1768342805589,0.89723967,95384.0,95383.0,0.42]
[1768342805794,0.89723967,95384.0,95369.0,0.0944]
[1768342805993,0.89723967,95384.0,95370.0,0.0944]
[1768342806289,0.42249947,95371.0,95355.0,0.09408536]
[1768342806484,0.42249947,95371.0,95356.0,0.0944]
[1768342806685,0.42249947,95357.0,95356.0,0.36]
[1768342806882,0.09895298,95408.0,95356.0,0.4544]
[1768342807087,0.09895298,95408.0,95370.0,0.17158487]
[1768342807297,0.09895298,95408.0,95371.0,0.0944]
[1768342807494,0.09895298,95408.0,95360.0,0.17158487]
[1768342807795,0.09895298,95408.0,95360.0,0.53158487]
[1768342807988,0.09895298,95408.0,95361.0,0.0944]
[1768342808193,0.09895298,95408.0,95361.0,0.4744]
[1768342808388,0.09895298,95408.0,95361.0,0.38]
[1768342808691,0.09895298,95408.0,95362.0,0.0944]
[1768342808893,0.09895298,95408.0,95362.0,0.4344]
[1768342809897,0.09895298,95398.0,95362.0,0.34]
[1768342810189,0.09895298,95396.0,95362.0,0.35]
[1768342810490,0.09895298,95396.0,95355.0,0.00230718]
[1768342810491,0.09895298,95396.0,95363.0,0.0944]
[1768342811895,0.19174949,95395.0,95363.0,0.0944]
[1768342812085,0.09895298,95389.0,95364.0,0.0944]
[1768342812398,0.09895298,95388.0,95365.0,0.0944]
[1768342812693,0.09895298,95388.0,95358.0,0.03624353]
[1768342812892,0.09895298,95388.0,95359.0,0.0944]
[1768342813290,0.09895298,95388.0,95363.0,0.03624353]
[1768342813487,0.09895298,95388.0,95365.0,0.03624353]
[1768342813797,0.09895298,95388.0,95366.0,0.0944]
[1768342814394,0.09895298,95388.0,95369.0,0.03624353]
[1768342814597,0.09895298,95388.0,95370.0,0.03624353]
[1768342814783,0.09895298,95388.0,95371.0,0.03624353]
[1768342815097,0.09279651,95401.0,95366.0,0.0944]
[1768342815098,0.09895298,95400.0,95372.0,0.03624353]
[1768342815409,0.09895298,95399.0,95372.0,0.03624353]
[1768342815695,0.09895298,95399.0,95366.0,0.0944]
[1768342815696,0.09279651,95395.0,95369.0,0.0944]
[1768342815887,0.09895298,95394.0,95369.0,0.0944]
[1768342816885,0.09895298,95394.0,95369.0,0.14875416]
[1768342817085,0.09895298,95404.0,95372.0,0.05435416]
[1768342817300,0.09895298,95404.0,95374.0,0.05435416]
[1768342817488,0.09274204,95398.0,95373.0,0.05435416]
[1768342817693,0.09274204,95397.0,95373.0,0.14875416]
[1768342817895,0.09274204,95393.0,95343.0,0.09126598]
[1768342818087,0.09274204,95367.0,95334.0,0.0944]
[1768342818990,0.09274204,95367.0,95336.0,0.09755693]
[1768342819191,0.0944,95371.0,95339.0,0.09755693]
[1768342819593,0.0944,95371.0,95342.0,0.09755693]
[1768342819786,0.09274204,95370.0,95334.0,0.0944]
[1768342819991,0.09274204,95368.0,95325.0,0.00230791]
[1768342820200,0.09274204,95368.0,95338.0,0.1391086]
[1768342820394,0.09274204,95368.0,95338.0,0.0447086]
[1768342820590,0.09274204,95368.0,95338.0,0.1391086]
[1768342822996,0.09274204,95368.0,95338.0,0.27666553]
[1768342823602,0.09274204,95368.0,95339.0,0.09755693]
[1768342823787,0.09274204,95368.0,95339.0,0.10755693]
[1768342824291,0.0944,95371.0,95338.0,0.1391086]
[1768342824490,0.09274204,95363.0,95338.0,0.1391086]
[1768342825091,0.0944,95371.0,95338.0,0.1391086]
[1768342825500,0.09274204,95393.0,95357.0,0.09755693]
[1768342825696,0.09274204,95393.0,95358.0,0.09444]
[1768342825896,0.09274204,95393.0,95358.0,0.50444]
[1768342826702,0.18372549,95392.0,95358.0,0.50444]
[1768342826895,0.09098345,95388.0,95358.0,0.41]
[1768342827099,0.09274204,95377.0,95345.0,0.09444]
[1768342827306,0.09274204,95387.0,95352.0,0.09755693]
[1768342827609,0.09274204,95387.0,95355.0,0.09755693]
[1768342827807,0.09274204,95387.0,95355.0,0.44755693]
[1768342828003,0.09274204,95387.0,95357.0,0.07362587]
[1768342828197,0.09098345,95401.0,95360.0,0.07362587]
[1768342828198,0.09444,95396.0,95360.0,0.07362587]
[1768342828410,0.09444,95396.0,95364.0,0.09755693]
[1768342828606,0.09274204,95395.0,95364.0,0.47755693]
[1768342829808,0.09274204,95395.0,95365.0,0.09444]
[1768342830010,0.09274204,95395.0,95365.0,0.49444]
[1768342832110,0.09274204,95389.0,95354.0,0.09755693]
[1768342832303,0.09274204,95389.0,95354.0,0.43755693]
[1768342832504,0.09274204,95389.0,95354.0,0.5111828]
[1768342832902,0.09274204,95389.0,95357.0,0.09755693]
[1768342833106,0.09444,95396.0,95362.0,0.09755693]
[1768342833303,0.09274204,95401.0,95362.0,0.44755693]
[1768342833503,0.09274204,95399.0,95362.0,0.44755693]
[1768342834511,0.09098345,95397.0,95362.0,0.35]
[1768342834717,0.09274204,95396.0,95362.0,0.35]
[1768342834909,0.09624128,95394.0,95362.0,0.35]
[1768342835214,0.09447207,95393.0,95362.0,0.35]
[1768342835417,0.09447207,95391.0,95362.0,0.35]
[1768342835612,0.09624128,95390.0,95362.0,0.35]
[1768342835908,0.09447207,95388.0,95362.0,0.35]
[1768342836113,0.09624128,95383.0,95356.0,0.0944]
[1768342836306,0.0944,95387.0,95356.0,0.54972324]
[1768342836508,0.09624128,95386.0,95356.0,0.54972324]
[1768342836708,0.09624128,95395.0,95357.0,0.09532324]
[1768342836905,0.09624128,95393.0,95357.0,0.44532324]
[1768342838019,0.09447207,95393.0,95365.0,0.05524202]
[1768342838220,0.09624128,95392.0,95362.0,0.05524202]
[1768342838512,0.09624128,95383.0,95363.0,0.05524202]
[1768342838814,0.09624128,95381.0,95362.0,0.05524202]
[1768342839016,0.09624128,95381.0,95354.0,0.0944]
[1768342839017,0.0944,95382.0,95363.0,0.05524202]
[1768342839316,0.0944,95382.0,95364.0,0.05524202]
[1768342839518,0.0944,95382.0,95365.0,0.05524202]
[1768342839712,0.0944,95382.0,95367.0,0.05524202]
[1768342840015,0.0944,95382.0,95359.0,0.05524202]
[1768342840217,0.0944,95382.0,95359.0,0.11524202]
[1768342840418,0.09624128,95378.0,95359.0,0.17]
[1768342840719,0.0944,95382.0,95359.0,0.22524202]
[1768342841512,0.09624128,95381.0,95359.0,0.22524202]
[1768342841716,0.0944,95382.0,95359.0,0.22524202]
[1768342841923,0.0944,95382.0,95360.0,0.05524202]
[1768342842107,0.37772,95415.0,95360.0,0.05524202]
[1768342842108,0.09447207,95431.0,95365.0,0.09532324]
[1768342842309,0.09624128,95399.0,95365.0,0.46532324]
[1768342842508,0.26605694,95400.0,95365.0,0.37]
[1768342842509,0.09624128,95397.0,95365.0,0.37]
[1768342842721,0.09624128,95397.0,95365.0,0.42524202]
[1768342843717,0.09624128,95397.0,95366.0,0.09532324]
[1768342843918,0.0944,95396.0,95370.0,0.04442732]
[1768342844121,0.09624128,95407.0,95371.0,0.15056526]
[1768342844317,0.0944,95406.0,95379.0,0.09532324]
[1768342844522,0.0944,95406.0,95379.0,0.10532324]
[1768342845107,0.0944,95406.0,95379.0,0.09532324]
[1768342845722,0.0944,95406.0,95379.0,0.10532324]
[1768342847012,0.0944,95406.0,95379.0,0.44532324]
[1768342847208,0.0944,95406.0,95379.0,0.50056526]
[1768342847418,0.09624128,95409.0,95383.0,0.05524202]
[1768342847723,0.09624128,95419.0,95389.0,0.09532324]
[1768342847917,0.09624128,95419.0,95391.0,0.09532324]
[1768342848112,0.09624128,95419.0,95392.0,0.0944]
[1768342848317,0.09624128,95419.0,95392.0,0.5144]
[1768342848515,0.26605694,95430.0,95392.0,0.5144]
[1768342848516,0.09624128,95470.0,95410.0,0.09532324]
[1768342848821,0.09447207,95476.0,95431.0,0.09532324]
[1768342849121,0.09447207,95502.0,95441.0,0.09532324]
[1768342849328,0.09447207,95499.0,95442.0,0.09532324]
[1768342849520,0.09447207,95499.0,95443.0,0.09532324]
[1768342849720,0.09447207,95499.0,95445.0,0.09532324]
[1768342849921,0.09447207,95499.0,95446.0,0.09532324]
[1768342850118,0.09447207,95499.0,95447.0,0.09532324]
[1768342850422,0.09447207,95497.0,95448.0,0.09532324]
[1768342850612,0.09447207,95487.0,95456.0,0.03677202]
[1768342850818,0.09624128,95484.0,95456.0,0.38677202]
[1768342851019,0.0944,95486.0,95456.0,0.38677202]
[1768342851020,0.09624128,95478.0,95456.0,0.35]
[1768342851216,0.09624128,95469.0,95444.0,0.0944]
[1768342851416,0.17158487,95500.0,95440.0,0.03677202]
[1768342851417,0.09447207,95466.0,95440.0,0.03677202]
[1768342851622,0.19071335,95448.0,95421.0,0.05488401]
[1768342851820,0.19071335,95446.0,95421.0,0.01]
[1768342852021,0.19071335,95446.0,95400.0,0.09178568]
[1768342852022,0.09624128,95437.0,95404.0,0.05889467]
[1768342852229,0.09624128,95436.0,95403.0,0.0944]
[1768342852429,0.09624128,95436.0,95403.0,0.4444]
[1768342852430,0.0944,95435.0,95403.0,0.4444]
[1768342852725,0.09624128,95445.0,95405.0,0.09532324]
[1768342853025,0.09624128,95443.0,95407.0,0.09532324]
[1768342853324,0.19071335,95438.0,95407.0,0.36]
[1768342853626,0.09624128,95438.0,95408.0,0.09532324]
[1768342853818,0.09624128,95438.0,95408.0,0.43532324]
[1768342854824,0.0944,95437.0,95408.0,0.43532324]
[1768342855232,0.0944,95436.0,95409.0,0.09532324]
[1768342855435,0.0944,95436.0,95410.0,0.09532324]
[1768342855743,0.0944,95436.0,95411.0,0.09532324]
[1768342855923,0.0944,95436.0,95411.0,0.39]
[1768342856123,0.0944,95436.0,95411.0,0.16]
[1768342856323,0.09447207,95449.0,95412.0,0.09532324]
[1768342856523,0.0944,95448.0,95413.0,0.09532324]
[1768342856723,0.09624128,95447.0,95413.0,0.48532324]
[1768342857123,0.09624128,95455.0,95422.0,0.09532324]
[1768342857332,0.0944,95456.0,95422.0,0.35]
[1768342857333,0.09624128,95453.0,95422.0,0.35]
[1768342858218,0.09624128,95451.0,95412.0,0.09532324]
[1768342858425,0.09624128,95450.0,95412.0,0.43532324]
[1768342858632,0.09624128,95448.0,95413.0,0.09532324]
[1768342858822,0.09624128,95445.0,95413.0,0.42]
[1768342859023,0.0944,95454.0,95403.0,0.09532324]
[1768342859024,0.09447207,95443.0,95403.0,0.09532324]
[1768342859332,0.09624128,95440.0,95403.0,0.50532324]
[1768342859523,0.09624128,95438.0,95403.0,0.50532324]
[1768342859833,0.09436,95442.0,95409.0,0.18710892]
[1768342860023,0.09624128,95441.0,95409.0,0.47532324]
[1768342860224,0.09624128,95441.0,95410.0,0.09532324]
[1768342860448,0.09624128,95441.0,95410.0,0.44532324]
[1768342860627,0.09624128,95449.0,95413.0,0.09532324]
[1768342860817,0.19071335,95460.0,95419.0,0.09532324]
[1768342861025,0.19071335,95460.0,95422.0,0.09532324]
[1768342861026,0.09624128,95459.0,95422.0,0.09532324]
[1768342861224,0.09624128,95459.0,95423.0,0.09532324]
[1768342861424,0.09624128,95469.0,95426.0,0.09178568]
[1768342861631,0.09436,95469.0,95435.0,0.09532324]
[1768342861832,0.09624128,95491.0,95448.0,0.09532324]
[1768342862033,0.09624128,95491.0,95449.0,0.09532324]
[1768342862034,0.09436,95490.0,95449.0,0.09532324]
[1768342862230,0.09447207,95498.0,95451.0,0.09532324]
[1768342862420,0.09624128,95497.0,95453.0,0.09532324]
[1768342862625,0.09436,95496.0,95465.0,0.09178568]
[1768342862934,0.09436,95495.0,95466.0,0.09532324]
[1768342863130,0.09436,95494.0,95466.0,0.45532324]
[1768342863334,0.09436,95493.0,95466.0,0.45532324]
[1768342863525,0.09436,95492.0,95466.0,0.45532324]
[1768342863727,0.09436,95492.0,95467.0,0.09532324]
[1768342863926,0.09436,95492.0,95468.0,0.09532324]
[1768342864133,0.09436,95491.0,95468.0,0.25532324]
[1768342865127,0.09624128,95499.0,95468.0,0.25532324]
[1768342865329,0.09624128,95499.0,95463.0,0.09178568]
[1768342865330,0.19399427,95510.0,95469.0,0.09666322]
[1768342865533,0.0995222,95510.0,95471.0,0.09980213]
[1768342865739,0.0995222,95507.0,95472.0,0.09666322]
[1768342866039,0.09436,95506.0,95473.0,0.09666322]
[1768342866242,0.0995222,95519.0,95475.0,0.09980213]
[1768342866425,0.09436,95518.0,95479.0,0.19646535]
[1768342866627,0.0995222,95517.0,95479.0,0.55646535]
[1768342867036,0.0995222,95516.0,95479.0,0.45666322]
[1768342867541,0.1938822,95515.0,95480.0,0.09666322]
[1768342867731,0.09436,95514.0,95481.0,0.09666322]
[1768342867944,0.09436,95514.0,95482.0,0.09666322]
[1768342868140,0.09436,95514.0,95483.0,0.09666322]
[1768342868351,0.09436,95514.0,95485.0,0.09666322]
[1768342868535,0.09436,95518.0,95488.0,0.09980213]
[1768342868733,0.09436,95517.0,95489.0,0.09666322]
[1768342869034,0.09436,95517.0,95490.0,0.09666322]
[1768342869239,0.09436,95517.0,95490.0,0.49666322]
[1768342869439,0.0995222,95523.0,95490.0,0.48666322]
[1768342869639,0.09436,95522.0,95490.0,0.09666322]
[1768342869841,0.09209323,95520.0,95479.0,0.09666322]
[1768342870030,0.0995222,95519.0,95482.0,0.09666322]
[1768342870236,0.0995222,95519.0,95482.0,0.44666322]
[1768342870540,0.0995222,95519.0,95484.0,0.09980213]
[1768342870735,0.09432,95518.0,95486.0,0.09666322]
[1768342870934,0.09432,95518.0,95487.0,0.09666322]
[1768342871137,0.09432,95518.0,95488.0,0.19098322]
[1768342871444,0.09432,95518.0,95488.0,0.54098322]
[1768342871748,0.09432,95523.0,95493.0,0.09666322]
[1768342872039,0.09432,95524.0,95495.0,0.09666322]